[Event "Botvinnik Cup 2018"]
[Site "Moscow"]
[Date "2018.08.11"]
[Round "3"]
[White "Manukyan, Sevak N"]
[Black "Sevdimaliyev, Urfan"]
[Result "0-1"]
[ECO "D27"]
[WhiteElo "1799"]
[BlackElo "2388"]
[Annotator "NA"]
[PlyCount "106"]
[EventDate "2018.08.10"]
[EventCountry "RUS"]
[SourceTitle "playchess.com"]
[Source "ChessBase"]
[SourceQuality "1"]
[TimeControl "5400+30"]

1. d4 {[%emt 0:00:00]} d5 {[%emt 0:00:00]} 2. c4 {[%emt 0:00:00]} dxc4 {[%emt 0:00:37]} 3. e3 {[%emt 0:00:00]} e6 {[%emt 0:00:28]} 4. Bxc4 {[%emt 0:00:15]} Nf6 {[%emt 0:00:12]} 5. Nf3 {[%emt 0:00:11]} c5 {[%emt 0:00:05]} 6. O-O {[%emt 0:00:29]} a6 {[%emt 0:00:20]} 7. a4 {[%emt 0:02:00]} Nc6 {[%emt 0:01:36]} 8. Nc3 {[%emt 0:01:11]} Be7 {[%emt 0:01:24]} 9. b3 {[%emt 0:09:28]} O-O {[%emt 0:00:20]} 10. Ba3 {[%emt 0:01:22]} cxd4 {[%emt 0:00:33]} 11. Bxe7 {[%emt 0:00:44]} Qxe7 {[%emt 0:00:14]} 12. exd4 {[%emt 0:08:03]} Rd8 {[%emt 0:01:11]} 13. Qd2 {[%emt 0:01:12]} b6 {[%emt 0:03:09]} 14. Rfe1 {[%emt 0:02:17]} Qc7 {[%emt 0:04:37]} 15. Ne4 {[%emt 0:08:19]} Nxe4 {[%emt 0:05:55]} 16. Rxe4 {[%emt 0:00:01]} Ne7 {[%emt 0:01:08]} 17. Rc1 {[%emt 0:11:24]} Qd6 {[%emt 0:01:16]} 18. Rce1 {[%emt 0:03:10]} b5 {[%emt 0:05:16]} 19. Bd3 {[%emt 0:12:54]} Bb7 {[%emt 0:06:18]} 20. Rh4 {[%emt 0:02:14]} Ng6 {[%emt 0:03:25]} 21. Bxg6 {[%emt 0:00:56]} hxg6 {[%emt 0:01:32]} 22. Ne5 {[%emt 0:08:55]} Qd5 {[%emt 0:02:02]} 23. Rg4 {[%emt 0:00:54]} Qd6 {[%emt 0:07:08]} 24. Qg5 {[%emt 0:05:07]} Qb4 {[%emt 0:03:47]} 25. Nd3 {[%emt 0:07:36]} Qc3 {[%emt 0:03:45]} 26. Rg3 {[%emt 0:05:10]} Rxd4 {[%emt 0:02:36]} 27. Qe5 {[%emt 0:01:58]} Rad8 {[%emt 0:00:54]} 28. Nc5 {[%emt 0:01:03]} Qxe1+ {[%emt 0:04:18]} 29. Qxe1 {[%emt 0:00:01]} Rd1 {[%emt 0:00:02]} 30. Kf1 {[%emt 0:03:28]} Bc6 {[%emt 0:01:30]} 31. a5 {[%emt 0:01:17]} b4 {[%emt 0:00:35]} 32. Rd3 {[%emt 0:01:15]} Rxe1+ {[%emt 0:02:52]} 33. Kxe1 {[%emt 0:00:01]} Rxd3 {[%emt 0:00:30]} 34. Nxd3 {[%emt 0:00:01]} Bxg2 {[%emt 0:00:20]} 35. Nxb4 {[%emt 0:00:01]} Bb7 {[%emt 0:00:03]} 36. Kd2 {[%emt 0:00:51]} Kf8 {[%emt 0:00:38]} 37. Nd3 {[%emt 0:00:41]} Bc6 {[%emt 0:01:07]} 38. Kc3 {[%emt 0:01:02]} Bb5 {[%emt 0:01:18]} 39. Ne5 {[%emt 0:00:13]} g5 {[%emt 0:01:40]} 40. Kb4 {[%emt 0:00:13]} f6 {[%emt 0:01:44]} 41. Nc4 {[%emt 0:01:54]} Ke7 {[%emt 0:00:45]} 42. Kc5 {[%emt 0:00:11]} Kd7 {[%emt 0:08:17]} 43. Kb6 {[%emt 0:00:01]} e5 {[%emt 0:00:32]} 44. Na3 {[%emt 0:00:53]} Bd3 {[%emt 0:00:47]} 45. Nc4 {[%emt 0:01:05]} e4 {[%emt 0:01:05]} 46. Ne3 {[%emt 0:00:56]} g6 {[%emt 0:01:52]} 47. Nc4 {[%emt 0:00:54]} f5 {[%emt 0:00:42]} 48. Ne3 {[%emt 0:00:50]} f4 {[%emt 0:00:15]} 49. Ng4 {[%emt 0:00:20]} Ke6 {[%emt 0:00:35]} 50. Kc5 {[%emt 0:00:18]} Be2 {[%emt 0:05:37]} 51. Nh6 {[%emt 0:00:24]} Bh5 {[%emt 0:00:24]} 52. Kd4 {[%emt 0:00:09]} e3 {[%emt 0:00:08]} 53. fxe3 f3 {[%emt 0:00:04]} 0-1

[Event "Botvinnik Cup 2018"]
[Site "Moscow"]
[Date "2018.08.11"]
[Round "3"]
[White "Yedigaryan, Asya"]
[Black "Sevdimaliyev, Urfan"]
[Result "1/2-1/2"]
[ECO "A16"]
[WhiteElo "1622"]
[BlackElo "2388"]
[Annotator "NA"]
[PlyCount "43"]
[EventDate "2018.08.10"]
[EventCountry "RUS"]
[SourceTitle "playchess.com"]
[Source "ChessBase"]
[SourceQuality "1"]
[TimeControl "5400+30"]

1. c4 {[%emt 0:00:00]} Nf6 {[%emt 0:00:33]} 2. Nc3 {[%emt 0:00:00]} d5 {[%emt 0:00:08]} 3. cxd5 {[%emt 0:00:01]} Nxd5 {[%emt 0:00:41]} 4. g3 {[%emt 0:00:05]} g6 {[%emt 0:00:25]} 5. Bg2 {[%emt 0:00:05]} Nxc3 {[%emt 0:00:10]} 6. bxc3 {[%emt 0:00:05]} Bg7 {[%emt 0:00:02]} 7. Rb1 {[%emt 0:00:54]} Nd7 {[%emt 0:00:29]} 8. Nf3 {[%emt 0:01:30]} O-O {[%emt 0:00:59]} 9. O-O {[%emt 0:00:27]} Nb6 {[%emt 0:00:15]} 10. Ba3 {[%emt 0:07:25]} Bf5 {[%emt 0:01:42]} 11. Rc1 {[%emt 0:20:14]} Nc4 {[%emt 0:02:50]} 12. Bc5 {[%emt 0:00:42]} b6 {[%emt 0:03:02]} 13. Be3 {[%emt 0:01:52]} Nxe3 {[%emt 0:01:46]} 14. fxe3 {[%emt 0:00:04]} Be4 {[%emt 0:01:32]} 15. d3 {[%emt 0:11:32]} Bb7 {[%emt 0:01:41]} 16. e4 {[%emt 0:00:49]} c5 {[%emt 0:04:02]} 17. Qd2 {[%emt 0:05:41]} c4 {[%emt 0:02:35]} 18. e5 {[%emt 0:06:23]} cxd3 {[%emt 0:04:01]} 19. exd3 {[%emt 0:00:11]} Rc8 {[%emt 0:02:05]} 20. Qe3 {[%emt 0:02:51]} Qd7 {[%emt 0:02:05]} 21. d4 {[%emt 0:03:26]} Bd5 {[%emt 0:08:29]} 22. Rf2 {[%emt 0:05:23]} 1/2-1/2

[Event "Botvinnik Cup 2018"]
[Site "Moscow"]
[Date "2018.08.11"]
[Round "3"]
[White "Urmonov, Davron"]
[Black "Komliakov, Viktor"]
[Result "0-1"]
[ECO "A04"]
[WhiteElo "1593"]
[BlackElo "2366"]
[Annotator "NA"]
[PlyCount "92"]
[EventDate "2018.08.10"]
[EventCountry "RUS"]
[SourceTitle "playchess.com"]
[Source "ChessBase"]
[SourceQuality "1"]
[TimeControl "5400+30"]

1. Nf3 {[%emt 0:00:00]} d6 {[%emt 0:00:27]} 2. c4 {[%emt 0:00:15]} e5 {[%emt 0:00:04]} 3. d4 {[%emt 0:01:38]} e4 {[%emt 0:00:04]} 4. Nfd2 {[%emt 0:00:38]} f5 {[%emt 0:01:06]} 5. Nc3 {[%emt 0:00:48]} Nf6 {[%emt 0:00:38]} 6. e3 {[%emt 0:01:16]} g6 {[%emt 0:00:38]} 7. Be2 {[%emt 0:03:26]} Bh6 {[%emt 0:03:15]} 8. b3 {[%emt 0:02:26]} c6 {[%emt 0:01:23]} 9. Qc2 {[%emt 0:03:04]} Na6 {[%emt 0:00:58]} 10. Ba3 {[%emt 0:02:54]} Nc7 {[%emt 0:02:24]} 11. O-O-O {[%emt 0:06:00]} d5 {[%emt 0:08:20]} 12. h3 {[%emt 0:04:07]} Be6 {[%emt 0:01:59]} 13. Kb1 {[%emt 0:05:26]} f4 {[%emt 0:02:39]} 14. cxd5 {[%emt 0:13:56]} cxd5 {[%emt 0:01:41]} 15. Bb5+ {[%emt 0:00:47]} Kf7 {[%emt 0:00:41]} 16. Rhe1 {[%emt 0:04:50]} fxe3 {[%emt 0:01:47]} 17. fxe3 {[%emt 0:00:33]} Rc8 {[%emt 0:00:15]} 18. Qb2 {[%emt 0:03:58]} Kg7 {[%emt 0:09:10]} 19. g4 {[%emt 0:01:20]} Bg5 {[%emt 0:00:34]} 20. Bf1 {[%emt 0:09:11]} h5 {[%emt 0:02:00]} 21. gxh5 {[%emt 0:04:04]} Rxh5 {[%emt 0:00:11]} 22. Rc1 {[%emt 0:00:53]} Nce8 {[%emt 0:03:26]} 23. Na4 {[%emt 0:06:10]} Rxc1+ {[%emt 0:00:25]} 24. Qxc1 {[%emt 0:00:11]} b6 {[%emt 0:00:09]} 25. Qc3 {[%emt 0:03:15]} Nd6 {[%emt 0:04:51]} 26. Qc6 {[%emt 0:02:35]} Nfe8 {[%emt 0:01:16]} 27. Nc3 {[%emt 0:03:13]} Bd7 {[%emt 0:01:58]} 28. Qxd5 {[%emt 0:05:33]} Bh4 {[%emt 0:00:26]} 29. Qxh5 {[%emt 0:01:45]} gxh5 {[%emt 0:00:11]} 30. Re2 {[%emt 0:00:12]} Kh6 {[%emt 0:00:52]} 31. Kb2 {[%emt 0:01:05]} Bf5 {[%emt 0:03:07]} 32. Bg2 {[%emt 0:00:22]} Nf6 {[%emt 0:00:07]} 33. Bxd6 {[%emt 0:00:44]} Qxd6 {[%emt 0:00:50]} 34. Ndxe4 {[%emt 0:00:59]} Nxe4 {[%emt 0:00:07]} 35. Nxe4 {[%emt 0:00:31]} Bxe4 {[%emt 0:00:15]} 36. Bxe4 {[%emt 0:00:04]} Bg3 {[%emt 0:02:24]} 37. Kc3 {[%emt 0:01:32]} b5 {[%emt 0:00:48]} 38. Kd3 {[%emt 0:00:52]} b4 {[%emt 0:00:35]} 39. Rc2 {[%emt 0:00:34]} Qa6+ {[%emt 0:00:49]} 40. Kd2 {[%emt 0:00:29]} Qf1 {[%emt 0:00:23]} 41. Rc6+ {[%emt 0:01:13]} Kg5 {[%emt 0:00:47]} 42. Rc5+ {[%emt 0:02:09]} Kh4 {[%emt 0:01:50]} 43. Bg6 {[%emt 0:00:30]} Be1+ {[%emt 0:00:06]} 44. Kc2 {[%emt 0:00:22]} Qe2+ {[%emt 0:00:06]} 45. Kb1 {[%emt 0:00:08]} Bc3 {[%emt 0:00:26]} 46. Rxh5+ {[%emt 0:00:23]} Kg3 0-1

[Event "Botvinnik Cup 2018"]
[Site "Moscow"]
[Date "2018.08.11"]
[Round "3"]
[White "Mikhailova, Alina"]
[Black "Egin, Vladimir"]
[Result "1/2-1/2"]
[ECO "A52"]
[WhiteElo "1398"]
[BlackElo "2317"]
[Annotator "NA"]
[PlyCount "84"]
[EventDate "2018.08.10"]
[EventCountry "RUS"]
[SourceTitle "playchess.com"]
[Source "ChessBase"]
[SourceQuality "1"]
[TimeControl "5400+30"]

1. d4 {[%emt 0:00:00]} Nf6 {[%emt 0:00:00]} 2. c4 {[%emt 0:00:00]} e5 {[%emt 0:00:00]} 3. dxe5 {[%emt 0:00:00]} Ng4 {[%emt 0:00:18]} 4. Bf4 {[%emt 0:00:00]} Nc6 {[%emt 0:01:09]} 5. Nf3 {[%emt 0:00:01]} Bb4+ {[%emt 0:01:50]} 6. Nbd2 {[%emt 0:00:30]} Qe7 {[%emt 0:00:31]} 7. e3 {[%emt 0:03:12]} Ngxe5 {[%emt 0:00:18]} 8. Nxe5 {[%emt 0:00:59]} Nxe5 {[%emt 0:00:12]} 9. Be2 {[%emt 0:00:22]} b6 {[%emt 0:10:53]} 10. O-O {[%emt 0:01:01]} Bb7 {[%emt 0:06:51]} 11. Nf3 {[%emt 0:12:12]} Nxf3+ {[%emt 0:06:12]} 12. Bxf3 {[%emt 0:00:11]} Bxf3 {[%emt 0:00:04]} 13. Qxf3 {[%emt 0:00:04]} O-O {[%emt 0:00:01]} 14. Rad1 {[%emt 0:08:13]} a5 {[%emt 0:07:11]} 15. Bxc7 {[%emt 0:07:04]} d5 {[%emt 0:03:05]} 16. Bxb6 {[%emt 0:03:05]} dxc4 {[%emt 0:01:01]} 17. a3 {[%emt 0:14:57]} Bc5 {[%emt 0:03:17]} 18. Bxc5 {[%emt 0:00:29]} Qxc5 {[%emt 0:00:01]} 19. Qd5 {[%emt 0:02:11]} Qb6 {[%emt 0:02:04]} 20. Rb1 {[%emt 0:04:08]} Rac8 {[%emt 0:02:16]} 21. Rfc1 {[%emt 0:00:40]} Rc5 {[%emt 0:01:17]} 22. Qe4 {[%emt 0:09:15]} Rfc8 {[%emt 0:00:25]} 23. Rc3 {[%emt 0:03:49]} g6 {[%emt 0:11:33]} 24. h3 {[%emt 0:01:17]} a4 {[%emt 0:08:47]} 25. Qc2 {[%emt 0:03:17]} Qb5 {[%emt 0:04:00]} 26. Rd1 {[%emt 0:00:51]} Rb8 {[%emt 0:02:18]} 27. Rd4 {[%emt 0:02:48]} Rbc8 {[%emt 0:02:49]} 28. Qe2 {[%emt 0:04:27]} Kg7 {[%emt 0:00:07]} 29. Qd2 {[%emt 0:02:43]} Rb8 {[%emt 0:00:55]} 30. Rf4 {[%emt 0:04:53]} Rbc8 {[%emt 0:01:08]} 31. h4 {[%emt 0:07:23]} h5 {[%emt 0:02:57]} 32. Qd4+ {[%emt 0:02:28]} Kg8 {[%emt 0:00:06]} 33. Rc2 {[%emt 0:02:00]} R5c7 {[%emt 0:00:25]} 34. Qf6 {[%emt 0:01:52]} Rd7 {[%emt 0:02:04]} 35. Rd4 {[%emt 0:00:27]} Rxd4 {[%emt 0:00:24]} 36. Qxd4 {[%emt 0:00:03]} Qc6 {[%emt 0:03:18]} 37. Qc3 {[%emt 0:00:53]} Qe4 {[%emt 0:02:04]} 38. g3 {[%emt 0:00:10]} Rd8 {[%emt 0:00:52]} 39. Rd2 {[%emt 0:00:17]} Rd3 {[%emt 0:00:29]} 40. Rxd3 {[%emt 0:00:58]} cxd3 {[%emt 0:00:02]} 41. Qd2 {[%emt 0:00:02]} Kg7 {[%emt 0:02:14]} 42. Qd1 Qc4 1/2-1/2

[Event "Botvinnik Cup 2018"]
[Site "Moscow"]
[Date "2018.08.11"]
[Round "4"]
[White "Khusnutdinov, Rustam"]
[Black "Lazavik, Denis"]
[Result "1/2-1/2"]
[ECO "C77"]
[WhiteElo "2470"]
[BlackElo "2235"]
[Annotator "ChessBase"]
[PlyCount "65"]
[EventDate "2018.08.10"]
[EventCountry "RUS"]
[SourceTitle "playchess.com"]
[Source "ChessBase"]
[SourceQuality "1"]
[TimeControl "5400+30"]

1. e4 {[%emt 0:00:00]} e5 {[%emt 0:00:00]} 2. Nf3 {[%emt 0:00:00]} Nc6 {[%emt 0:00:01]} 3. Bb5 {[%emt 0:00:00]} a6 {[%emt 0:00:16]} 4. Ba4 {[%emt 0:00:00]} Nf6 {[%emt 0:00:20]} 5. d3 {[%emt 0:00:00]} d6 {[%emt 0:02:08]} 6. c4 {[%emt 0:00:12]} Bd7 {[%emt 0:04:41]} 7. Nc3 {[%emt 0:00:59]} g6 {[%emt 0:01:07]} 8. O-O {[%emt 0:00:14]} Bg7 {[%emt 0:00:35]} 9. Nd5 {[%emt 0:00:30]} Nxd5 {[%emt 0:03:35]} 10. cxd5 {[%emt 0:00:06]} Ne7 {[%emt 0:00:08]} 11. d4 {[%emt 0:01:16]} exd4 {[%emt 0:05:26]} 12. Nxd4 {[%emt 0:00:23]} Bxa4 {[%emt 0:02:53]} 13. Qxa4+ {[%emt 0:00:07]} Qd7 {[%emt 0:00:10]} 14. Qc4 {[%emt 0:02:31]} O-O {[%emt 0:01:00]} 15. Be3 {[%emt 0:00:13]} Rac8 {[%emt 0:06:31]} 16. Rfd1 {[%emt 0:00:24]} Rfe8 {[%emt 0:04:50]} 17. Nf3 {[%emt 0:05:11]} c5 {[%emt 0:01:56]} 18. dxc6 {[%emt 0:00:22]} Nxc6 {[%emt 0:00:11]} 19. Qd3 {[%emt 0:02:21]} Nb4 {[%emt 0:04:30]} 20. Qxd6 {[%emt 0:05:11]} Qxd6 {[%emt 0:00:08]} 21. Rxd6 {[%emt 0:00:02]} Nc2 {[%emt 0:00:13]} 22. Rc1 {[%emt 0:00:31]} Nxe3 {[%emt 0:00:09]} 23. Rxc8 {[%emt 0:00:01]} Rxc8 {[%emt 0:00:10]} 24. fxe3 {[%emt 0:00:02]} Bxb2 {[%emt 0:00:21]} 25. Rb6 {[%emt 0:02:14]} Bc1 {[%emt 0:01:07]} 26. Kf2 {[%emt 0:02:55]} Rc2+ {[%emt 0:01:21]} 27. Kg3 {[%emt 0:00:06]} Bxe3 {[%emt 0:01:19]} 28. Rxb7 {[%emt 0:00:05]} Rxa2 {[%emt 0:01:34]} 29. Ne5 {[%emt 0:00:03]} f6 {[%emt 0:16:01]} 30. Ng4 {[%emt 0:08:59]} Bg5 {[%emt 0:02:16]} 31. Rb8+ {[%emt 0:01:53]} Kg7 {[%emt 0:00:23]} 32. Rb7+ {[%emt 0:00:01]} Kg8 {[%emt 0:00:17]} 33. Rb8+ {[%emt 0:00:01]} 1/2-1/2

[Event "Botvinnik Cup 2018"]
[Site "Moscow"]
[Date "2018.08.11"]
[Round "4"]
[White "Tologontegin, Semetey"]
[Black "Urmonov, Davron"]
[Result "1-0"]
[ECO "A01"]
[WhiteElo "2407"]
[BlackElo "1593"]
[Annotator "NA"]
[PlyCount "55"]
[EventDate "2018.08.10"]
[EventCountry "RUS"]
[SourceTitle "playchess.com"]
[Source "ChessBase"]
[SourceQuality "1"]
[TimeControl "5400+30"]

1. b3 {[%emt 0:00:00]} d5 {[%emt 0:00:20]} 2. Bb2 {[%emt 0:00:00]} c5 {[%emt 0:00:13]} 3. e3 {[%emt 0:00:00]} Nc6 {[%emt 0:00:33]} 4. Bb5 {[%emt 0:00:00]} e6 {[%emt 0:00:46]} 5. Nf3 {[%emt 0:00:21]} Nf6 {[%emt 0:00:34]} 6. O-O {[%emt 0:02:27]} Be7 {[%emt 0:00:46]} 7. Ne5 {[%emt 0:00:06]} Bd7 {[%emt 0:00:45]} 8. Bxc6 {[%emt 0:00:03]} Bxc6 {[%emt 0:00:14]} 9. f4 {[%emt 0:01:38]} O-O {[%emt 0:02:35]} 10. d3 {[%emt 0:00:16]} Nd7 {[%emt 0:01:25]} 11. Nd2 {[%emt 0:00:54]} Nxe5 {[%emt 0:00:54]} 12. Bxe5 {[%emt 0:00:25]} d4 {[%emt 0:01:30]} 13. f5 {[%emt 0:03:58]} dxe3 {[%emt 0:04:19]} 14. Nc4 {[%emt 0:01:25]} Qd5 {[%emt 0:02:11]} 15. Qg4 {[%emt 0:00:23]} f6 {[%emt 0:01:30]} 16. Bb2 {[%emt 0:02:28]} exf5 {[%emt 0:02:01]} 17. Rxf5 {[%emt 0:00:44]} Qe6 {[%emt 0:00:56]} 18. Rf4 {[%emt 0:02:36]} Qxg4 {[%emt 0:05:36]} 19. Rxg4 {[%emt 0:00:36]} g5 {[%emt 0:02:05]} 20. Rg3 {[%emt 0:00:49]} b5 {[%emt 0:02:08]} 21. Rxe3 {[%emt 0:01:32]} Rae8 {[%emt 0:00:39]} 22. Rae1 {[%emt 0:00:12]} Kf7 {[%emt 0:01:05]} 23. Rxe7+ {[%emt 0:00:55]} Kg6 {[%emt 0:03:00]} 24. Rxe8 {[%emt 0:00:26]} Bxe8 {[%emt 0:00:02]} 25. Nd6 {[%emt 0:00:20]} Bc6 {[%emt 0:00:27]} 26. Re7 {[%emt 0:00:41]} a5 {[%emt 0:02:40]} 27. Ne4 {[%emt 0:02:42]} Bxe4 {[%emt 0:00:50]} 28. Rxe4 {[%emt 0:00:07]} 1-0

[Event "Botvinnik Cup 2018"]
[Site "Moscow"]
[Date "2018.08.11"]
[Round "4"]
[White "Tologontegin, Semetey"]
[Black "Rakhmatullaev, Almas"]
[Result "1-0"]
[ECO "D94"]
[WhiteElo "2407"]
[BlackElo "1896"]
[Annotator "NA"]
[PlyCount "71"]
[EventDate "2018.08.10"]
[EventCountry "RUS"]
[SourceTitle "playchess.com"]
[Source "ChessBase"]
[SourceQuality "1"]
[TimeControl "5400+30"]

1. Nf3 {[%emt 0:00:00]} d5 {[%emt 0:00:00]} 2. e3 {[%emt 0:00:00]} Nf6 {[%emt 0:01:49]} 3. c4 {[%emt 0:04:01]} c6 {[%emt 0:01:16]} 4. Nc3 {[%emt 0:02:03]} g6 {[%emt 0:08:10]} 5. h3 {[%emt 0:04:22]} Bg7 {[%emt 0:00:21]} 6. d4 {[%emt 0:01:18]} O-O {[%emt 0:01:42]} 7. Bd2 {[%emt 0:03:23]} Ne4 {[%emt 0:03:07]} 8. cxd5 {[%emt 0:01:06]} cxd5 {[%emt 0:00:59]} 9. Qb3 {[%emt 0:01:05]} e6 {[%emt 0:02:14]} 10. Bd3 {[%emt 0:04:38]} f5 {[%emt 0:01:58]} 11. Ne2 {[%emt 0:01:57]} Nc6 {[%emt 0:02:14]} 12. Bb4 {[%emt 0:03:17]} Rf7 {[%emt 0:01:10]} 13. Bc3 {[%emt 0:01:51]} Bd7 {[%emt 0:08:36]} 14. O-O {[%emt 0:01:33]} g5 {[%emt 0:11:49]} 15. Bxe4 {[%emt 0:01:45]} fxe4 {[%emt 0:02:32]} 16. Nh2 {[%emt 0:00:53]} b5 {[%emt 0:02:07]} 17. a3 {[%emt 0:00:39]} Qf6 {[%emt 0:03:24]} 18. Bb4 {[%emt 0:00:51]} Nxb4 {[%emt 0:01:50]} 19. Qxb4 {[%emt 0:00:07]} Bf8 {[%emt 0:00:50]} 20. Qa5 {[%emt 0:00:08]} Bd6 {[%emt 0:00:53]} 21. Ng4 {[%emt 0:00:43]} Qg6 {[%emt 0:00:56]} 22. Qa6 {[%emt 0:00:18]} h5 {[%emt 0:02:57]} 23. Nh6+ {[%emt 0:01:17]} Qxh6 {[%emt 0:00:07]} 24. Qxd6 {[%emt 0:00:04]} Raf8 {[%emt 0:02:09]} 25. Rac1 {[%emt 0:00:31]} h4 {[%emt 0:00:39]} 26. Rc7 {[%emt 0:00:43]} Qg7 {[%emt 0:01:25]} 27. Rxa7 {[%emt 0:01:11]} Bc8 {[%emt 0:04:22]} 28. Rxf7 {[%emt 0:00:18]} Qxf7 {[%emt 0:00:10]} 29. f4 {[%emt 0:02:32]} g4 {[%emt 0:05:29]} 30. hxg4 {[%emt 0:00:11]} Qg6 {[%emt 0:00:10]} 31. g5 {[%emt 0:06:07]} Qh5 {[%emt 0:00:16]} 32. Rf2 {[%emt 0:00:02]} h3 {[%emt 0:00:21]} 33. g3 {[%emt 0:00:05]} Qg4 {[%emt 0:03:19]} 34. Kh2 {[%emt 0:00:05]} Qf3 {[%emt 0:02:10]} 35. Rxf3 {[%emt 0:00:50]} exf3 {[%emt 0:00:03]} 36. Qc7 {[%emt 0:00:13]} 1-0

[Event "Botvinnik Cup 2018"]
[Site "Moscow"]
[Date "2018.08.11"]
[Round "4"]
[White "Sevdimaliyev, Urfan"]
[Black "Chiriac, Daniel"]
[Result "1/2-1/2"]
[ECO "A46"]
[WhiteElo "2388"]
[BlackElo "1841"]
[Annotator "NA"]
[PlyCount "90"]
[EventDate "2018.08.10"]
[EventCountry "RUS"]
[SourceTitle "playchess.com"]
[Source "ChessBase"]
[SourceQuality "1"]
[TimeControl "5400+30"]

1. d4 {[%emt 0:00:58]} Nf6 {[%emt 0:00:00]} 2. Nf3 {[%emt 0:00:20]} e6 {[%emt 0:00:00]} 3. Bg5 {[%emt 0:00:04]} d5 {[%emt 0:00:07]} 4. Nbd2 {[%emt 0:00:07]} c5 {[%emt 0:00:55]} 5. e3 {[%emt 0:00:13]} Nc6 {[%emt 0:00:51]} 6. c3 {[%emt 0:00:39]} Bd7 {[%emt 0:02:49]} 7. Bd3 {[%emt 0:01:47]} cxd4 {[%emt 0:04:03]} 8. exd4 {[%emt 0:02:09]} Be7 {[%emt 0:00:04]} 9. O-O {[%emt 0:00:37]} h6 {[%emt 0:00:36]} 10. Bh4 {[%emt 0:00:02]} Nh5 {[%emt 0:08:50]} 11. Bxe7 {[%emt 0:01:32]} Qxe7 {[%emt 0:00:05]} 12. Re1 {[%emt 0:00:03]} O-O {[%emt 0:02:02]} 13. Ne5 {[%emt 0:03:08]} Nf4 {[%emt 0:02:23]} 14. Bf1 {[%emt 0:00:40]} Nxe5 {[%emt 0:00:57]} 15. Rxe5 {[%emt 0:00:16]} Ng6 {[%emt 0:01:09]} 16. Re3 {[%emt 0:03:11]} Qd6 {[%emt 0:01:59]} 17. g3 {[%emt 0:00:19]} e5 {[%emt 0:07:48]} 18. dxe5 {[%emt 0:01:01]} Nxe5 {[%emt 0:00:12]} 19. Nc4 {[%emt 0:02:25]} Nxc4 {[%emt 0:02:15]} 20. Bxc4 {[%emt 0:00:07]} Be6 {[%emt 0:05:52]} 21. Qd4 {[%emt 0:09:49]} Qc6 {[%emt 0:01:30]} 22. Bf1 {[%emt 0:07:01]} Rfd8 {[%emt 0:03:16]} 23. Bg2 {[%emt 0:00:59]} Rd7 {[%emt 0:00:39]} 24. Rd1 {[%emt 0:00:29]} Qa6 {[%emt 0:01:27]} 25. a3 {[%emt 0:00:21]} Rad8 {[%emt 0:00:24]} 26. Re5 {[%emt 0:00:35]} Qb5 {[%emt 0:04:05]} 27. Rd2 {[%emt 0:00:44]} b6 {[%emt 0:02:14]} 28. h4 {[%emt 0:01:44]} Qc5 {[%emt 0:00:40]} 29. Qf4 {[%emt 0:05:15]} Qc4 {[%emt 0:03:32]} 30. Rd4 {[%emt 0:02:01]} Qb5 {[%emt 0:00:03]} 31. Qd2 {[%emt 0:00:17]} Qc5 {[%emt 0:05:48]} 32. Bf1 {[%emt 0:04:23]} Qc6 {[%emt 0:01:52]} 33. Bd3 {[%emt 0:01:55]} Qd6 {[%emt 0:02:35]} 34. Re1 {[%emt 0:01:21]} Re7 {[%emt 0:00:52]} 35. Bb1 {[%emt 0:03:38]} b5 {[%emt 0:02:50]} 36. Rd1 {[%emt 0:02:19]} Red7 {[%emt 0:01:02]} 37. Qd3 {[%emt 0:01:48]} Qe5 {[%emt 0:02:45]} 38. f4 {[%emt 0:07:33]} Qb8 {[%emt 0:03:44]} 39. f5 {[%emt 0:03:24]} Bxf5 {[%emt 0:00:52]} 40. Qxf5 {[%emt 0:00:02]} Qxg3+ {[%emt 0:00:07]} 41. Kh1 {[%emt 0:00:46]} Re8 {[%emt 0:02:53]} 42. Be4 {[%emt 0:10:37]} Rxe4 {[%emt 0:03:32]} 43. Rxe4 {[%emt 0:00:21]} dxe4 {[%emt 0:00:03]} 44. Qxd7 {[%emt 0:07:46]} Qf3+ {[%emt 0:00:34]} 45. Kg1 {[%emt 0:00:43]} Qg3+ {[%emt 0:00:09]} 1/2-1/2

[Event "Botvinnik Cup 2018"]
[Site "Moscow"]
[Date "2018.08.11"]
[Round "4"]
[White "Sevdimaliyev, Urfan"]
[Black "Mikhailova, Alina"]
[Result "1-0"]
[ECO "A46"]
[WhiteElo "2388"]
[BlackElo "1398"]
[Annotator "NA"]
[PlyCount "67"]
[EventDate "2018.08.10"]
[EventCountry "RUS"]
[SourceTitle "playchess.com"]
[Source "ChessBase"]
[SourceQuality "1"]
[TimeControl "5400+30"]

1. d4 {[%emt 0:01:56]} Nf6 {[%emt 0:00:00]} 2. Nf3 {[%emt 0:00:39]} e6 {[%emt 0:00:00]} 3. Bg5 {[%emt 0:02:13]} h6 {[%emt 0:00:00]} 4. Bh4 {[%emt 0:00:23]} Be7 {[%emt 0:00:02]} 5. Nbd2 {[%emt 0:01:20]} b6 {[%emt 0:00:15]} 6. e4 {[%emt 0:03:36]} Bb7 {[%emt 0:01:36]} 7. Bd3 {[%emt 0:04:00]} d5 {[%emt 0:05:36]} 8. e5 {[%emt 0:01:30]} Nfd7 {[%emt 0:00:15]} 9. Bxe7 {[%emt 0:00:08]} Qxe7 {[%emt 0:00:07]} 10. O-O {[%emt 0:00:17]} O-O {[%emt 0:00:17]} 11. c3 {[%emt 0:02:52]} c5 {[%emt 0:00:23]} 12. Re1 {[%emt 0:02:48]} Nc6 {[%emt 0:05:36]} 13. a3 {[%emt 0:00:27]} a5 {[%emt 0:03:01]} 14. Nf1 {[%emt 0:03:33]} c4 {[%emt 0:19:29]} 15. Bb1 {[%emt 0:00:29]} b5 {[%emt 0:00:15]} 16. Qc2 {[%emt 0:13:49]} g6 {[%emt 0:01:05]} 17. h4 {[%emt 0:04:40]} b4 {[%emt 0:16:08]} 18. axb4 {[%emt 0:04:59]} axb4 {[%emt 0:00:32]} 19. Rxa8 {[%emt 0:00:21]} Rxa8 {[%emt 0:00:38]} 20. cxb4 {[%emt 0:04:09]} Qxb4 {[%emt 0:06:02]} 21. Qc1 {[%emt 0:03:41]} Kg7 {[%emt 0:01:50]} 22. h5 {[%emt 0:02:36]} Na5 {[%emt 0:07:40]} 23. hxg6 {[%emt 0:02:49]} fxg6 {[%emt 0:00:09]} 24. N1h2 {[%emt 0:02:17]} Nb3 {[%emt 0:08:51]} 25. Qe3 {[%emt 0:01:56]} Qe7 {[%emt 0:05:29]} 26. Ng4 {[%emt 0:01:32]} Rh8 {[%emt 0:00:16]} 27. Qe2 {[%emt 0:02:47]} Nb8 {[%emt 0:06:51]} 28. Nf6 {[%emt 0:10:54]} g5 {[%emt 0:03:05]} 29. Qe3 {[%emt 0:04:33]} Nd7 {[%emt 0:05:27]} 30. Nxg5 {[%emt 0:01:13]} hxg5 {[%emt 0:00:45]} 31. Qxg5+ {[%emt 0:00:02]} Kf8 {[%emt 0:00:04]} 32. Nxd7+ {[%emt 0:00:38]} Qxd7 {[%emt 0:00:06]} 33. Qf6+ {[%emt 0:00:03]} Kg8 {[%emt 0:00:14]} 34. Re3 {[%emt 0:00:03]} 1-0